Cogmind - Beta 14 *** ADVENTURER MODE // 2024.10.24 @ 15:07:53 Player: piracy master Result: Destroyed by X-67 Chaingunner with Minigun Performance ------------- Evolutions (3) 1500 Regions Visited (9) 1800 Robots Destroyed (46) 230 Value Destroyed (1387) 1387 Prototype IDs (3) 60 Alien Tech Used (0) 0 Bonus (681) 681 TOTAL SCORE: 5658 Bonus ------- High Alert Combat Kills 11 Follower Combat Kills 243 Entered DSFs 500 Friendly Fire -73 Cogmind --------- Core Integrity 0/700 Matter 5/300 Energy 100/100 System Corruption 9% Temperature Cool (0) Movement Core (50) Location -7/DSF Parts ------- > --- POWER (2) -------- (None) > --- PROPULSION (2) --- (None) > --- UTILITY (6) ------ (None) > --- WEAPON (3) ------- (None) > --- INVENTORY (5) ---- Light Nuclear Core Peak State ------------ > --- POWER ------------ Improved Ion Engine Improved Deuterium Engine > --- PROPULSION ------- Light Treads Light Treads > --- UTILITY ---------- Large Storage Unit ECM Suite Hardened Medium Armor Plating Shield Generator Hacking Suite Thief Drone Bay > --- WEAPON ----------- Heavy Assault Rifle Heavy Assault Rifle Remote Datajack > --- INVENTORY -------- Light Nuclear Core Light Nuclear Core Light Nuclear Core Light Treads Light Treads Kinecellerator Rocket Launcher Scythe [Rating: 35] Favorites ----------- Power Improved Ion Engine Engine Improved Ion Engine Power Core Light Nuclear Core Propulsion Light Treads Treads Light Treads Utility Large Storage Unit Device Seismic Detector Storage Large Storage Unit Hackware Hacking Suite Protection Hardened Medium Armor Plating Weapon Assault Rifle Energy Gun Particle Gun Ballistic Gun Assault Rifle Launcher Rocket Launcher Special Weapon Remote Datajack Slashing Weapon Scythe Build | -11 -10 -10 -9 -9 -8 -7 -7 -7 -7 ------- Run | Yrd Mat Min Mat Min Mat Fac Was Fac DSF Slots Evolved 6 | . . . 2 . 2 2 . . . Power 1 | . . . . . 1 . . . . Propulsion . | . . . . . . . . . . Utility 4 | . . . 2 . 1 1 . . . Weapon 1 | . . . . . . 1 . . . Parts Attached 41 | 6 2 . 10 . 12 5 3 2 1 Power 8 | 1 . . 2 . 3 1 . 1 . Engine 7 | 1 . . 2 . 3 1 . . . Core 1 | . . . . . . . . 1 . Reactor . | . . . . . . . . . . Propulsion 6 | 2 . . . . 2 . 2 . . Treads 6 | 2 . . . . 2 . 2 . . Leg . | . . . . . . . . . . Wheel . | . . . . . . . . . . Hover . | . . . . . . . . . . Flight . | . . . . . . . . . . Utility 14 | 1 1 . 6 . 4 1 . 1 . Device 8 | . 1 . 3 . 3 . . 1 . Storage 2 | 1 . . 1 . . . . . . Processor . | . . . . . . . . . . Hackware 1 | . . . . . 1 . . . . Protection 3 | . . . 2 . . 1 . . . Artifact . | . . . . . . . . . . Weapon 13 | 2 1 . 2 . 3 3 1 . 1 Energy Gun 2 | 1 1 . . . . . . . . Energy Cannon . | . . . . . . . . . . Ballistic Gun 6 | 1 . . 2 . 2 1 . . . Ballistic Cannon . | . . . . . . . . . . Launcher 2 | . . . . . 1 . . . 1 Special Weapon 2 | . . . . . . 1 1 . . Impact Weapon . | . . . . . . . . . . Slashing Weapon 1 | . . . . . . 1 . . . Piercing Weapon . | . . . . . . . . . . Special Melee Weapon . | . . . . . . . . . . Unidentified Prototypes . | . . . . . . . . . . Parts Lost 15 | . . . 4 . 2 . 7 . 2 Power 3 | . . . 1 . 1 . . . 1 Propulsion 3 | . . . . . 1 . 2 . . Utility 5 | . . . 2 . . . 3 . . Weapon 4 | . . . 1 . . . 2 . 1 Highest Loss Streak 7 | . . . 4 . 1 . 7 . 2 To Critical Strikes . | . . . . . . . . . . Average Slot Usage (%) 90 | . 86 100 98 100 85 99 40 15 7 Engine 12 | . 14 14 10 11 13 15 6 . . Treads 18 | . 28 28 22 22 14 15 6 . . Device 20 | . 1 14 23 33 28 22 6 7 1 Storage 9 | . 14 14 11 11 9 7 3 . . Hackware 2 | . . . . . 1 7 3 . . Protection 3 | . . . 9 . . 7 2 . . Energy Gun 3 | . 14 14 4 . . . . . . Ballistic Gun 15 | . 14 14 17 22 17 15 6 . . Launcher 1 | . . . . . . 5 . . . Peak Build Rating 35 | 6 8 9 15 15 25 35 26 7 7 Average Rating 16 | 5 6 8 10 15 19 30 11 6 3 On Entrance 11 | . 6 8 9 15 15 25 26 1 7 Naked Turns 70 | . . . . . . . 55 . 15 Heaviest Build 62 | 11 14 14 34 34 49 62 57 9 9 Greatest Support 40 | 40 40 40 40 40 40 40 40 3 3 Greatest Overweight (x) 8 | . . . . . 1 1 8 2 2 Average Overweight (x) . | . . . . . . 1 . 2 1 Largest Inventory Capacity 15 | 8 8 8 15 15 15 15 15 5 5 Average Capacity 12 | 7 8 8 14 15 15 15 9 5 5 Most Carried 15 | 4 4 7 8 1 15 8 7 3 2 Average Carried 5 | . . 5 4 1 10 5 5 2 1 Final Capacity 15 | 8 8 8 15 15 15 15 5 5 5 Final Carried 7 | . 4 7 1 1 7 7 4 2 1 Class Distribution -------------------- 72% | Mutant 20% | Hacker-Tank 6% | Hacker-Mutant Dominant Class ---------------- Mutant | -10/Materials Mutant | -10/Mines Mutant | -9/Materials Mutant | -9/Mines Mutant | -8/Materials Hacker-Tank | -7/Factory Mutant | -7/Waste Mutant | -7/Factory Mutant | -7/DSF Resources | -11 -10 -10 -9 -9 -8 -7 -7 -7 -7 ----------- Run | Yrd Mat Min Mat Min Mat Fac Was Fac DSF Matter Collected 1060 | 120 54 172 253 44 319 98 . . . Remotely . | . . . . . . . . . . Salvage Created 1609 | . 54 113 718 . 384 340 . . . Parts 104 | . 1 11 58 . 19 15 . . . Haulers Intercepted 1 | . . . . . 1 . . . . Recyclers Shooed 2 | . . . . . . 2 . . . Parts Field Recycled . | . . . . . . . . . . Retrieved Matter . | . . . . . . . . . . Parts Self-Destructed . | . . . . . . . . . . Prevented . | . . . . . . . . . . Kills | -11 -10 -10 -9 -9 -8 -7 -7 -7 -7 ------- Run | Yrd Mat Min Mat Min Mat Fac Was Fac DSF Combat Hostiles Destroyed 35 | . 1 5 16 . 7 6 . . . Guns 29 | . 1 5 16 . 3 4 . . . AOE 6 | . . . . . 4 2 . . . Classes Destroyed 12 | . 1 3 4 . 2 2 . . . Worker 1 | . . 1 . . . . . . . Builder 1 | . . 1 . . . . . . . Tunneler 1 | . . . 1 . . . . . . Hauler 1 | . . . . . 1 . . . . Recycler 1 | . . . 1 . . . . . . Watcher 6 | . . . 2 . 1 3 . . . Swarmer 11 | . . 5 6 . . . . . . Grunt 13 | . 1 . 5 . 4 3 . . . Brawler 1 | . . . . . . 1 . . . Sentry 8 | . . . 5 . 2 1 . . . Hunter 1 | . . . . . 1 . . . . Programmer 1 | . . . . . . 1 . . . Best Kill Streak 5 | . 1 3 4 . 5 4 . . . Combat Bots Only 4 | . 1 3 4 . 4 4 . . . Max Kills in Single Turn 3 | . 1 2 2 . 3 1 . . . Gunslinging 1 | . . . 1 . . . . . . Exploded 3 | . . . . . 3 1 . . . Melee . | . . . . . . . . . . Uniques/NPCs Destroyed . | . . . . . . . . . . Combat | -11 -10 -10 -9 -9 -8 -7 -7 -7 -7 -------- Run | Yrd Mat Min Mat Min Mat Fac Was Fac DSF Hostile Shots Fired 299 | . 4 12 118 . 57 58 7 . 43 Missed 84 | . 1 2 36 . 16 23 . . 6 Damage Taken 2436 | . 36 56 765 32 429 206 244 . 668 Core 888 | . 14 21 69 . 76 32 170 . 506 Absorbed by Shields 170 | . . . . . 95 75 . . . Ignored by Resistances 770 | . 11 20 234 9 151 92 64 . 189 Core Remaining (%) 88 | 100 . 86 . 82 86 . . . . Volleys Fired 129 | . 2 8 56 1 30 27 5 . . Largest 3 | . 2 2 2 2 2 3 2 . . Hottest 85 | . 60 85 85 40 56 79 46 . . Shots Fired 247 | . 4 16 99 2 61 56 9 . . Gun 238 | . 4 16 99 2 59 50 8 . . Cannon . | . . . . . . . . . . Launcher 6 | . . . . . 2 4 . . . Special 3 | . . . . . . 2 1 . . Kinetic 204 | . 2 8 75 2 59 50 8 . . Thermal 34 | . 2 8 24 . . . . . . Explosive 6 | . . . . . 2 4 . . . Electromagnetic . | . . . . . . . . . . Robot Hit Streak 20 | . 4 10 20 1 11 7 . . . Robot Miss Streak 3 | . . 1 3 1 2 3 1 . . Penetration Max . | . . . . . . . . . . Secondary Targets 3 | . . . 3 . . . . . . Max Gunslinging Chain 1 | . . . 1 . . . . . . Shots Hit Robots 177 | . 4 11 77 1 48 35 1 . . Core Hits 87 | . 3 7 32 . 22 22 1 . . Critical Kills . | . . . . . . . . . . Critical Parts Destroyed . | . . . . . . . . . . Critical Strikes . | . . . . . . . . . . Melee Attacks 1 | . . . . . . . 1 . . Impact . | . . . . . . . . . . Slashing 1 | . . . . . . . 1 . . Piercing . | . . . . . . . . . . Sneak Attacks . | . . . . . . . . . . Combat Hostiles . | . . . . . . . . . . Follow-up Attacks . | . . . . . . . . . . Damage Inflicted 2969 | . 44 172 1062 29 821 825 16 . . Guns 2411 | . 42 167 1051 22 632 497 . . . Cannons . | . . . . . . . . . . Explosions 511 | . . . . . 184 327 . . . Melee 16 | . . . . . . . 16 . . Ramming 31 | . 2 5 11 7 5 1 . . . Kinetic 1965 | . 22 71 721 22 632 497 . . . Thermal 446 | . 20 96 330 . . . . . . Explosive 511 | . . . . . 184 327 . . . Electromagnetic . | . . . . . . . . . . Impact . | . . . . . . . . . . Slashing 16 | . . . . . . . 16 . . Piercing . | . . . . . . . . . . Highest Corruption 9 | . . . . . 1 3 9 9 9 Average Corruption 2 | . . . . . 1 2 8 9 9 Corruption Purged . | . . . . . . . . . . Corruption Blocked . | . . . . . . . . . . Effects 15 | . . . . . 5 3 3 1 3 Message Errors 3 | . . . . . . 1 . . 2 Matter Fused 3 | . . . . . 2 . . 1 . Heat Flow Errors 3 | . . . . . . 1 1 . 1 Energy Discharges 1 | . . . . . . . 1 . . Parts Rejected 1 | . . . . . 1 . . . . Data Loss (minor) 2 | . . . . . . 1 1 . . Misfires 1 | . . . . . 1 . . . . Alerts 1 | . . . . . 1 . . . . Overload Shots . | . . . . . . . . . . Overflow Damage . | . . . . . . . . . . Projectiles . | . . . . . . . . . . Explosions . | . . . . . . . . . . Melee . | . . . . . . . . . . Knockbacks . | . . . . . . . . . . Impact . | . . . . . . . . . . Kinetic . | . . . . . . . . . . Secondary . | . . . . . . . . . . Self-Inflicted Damage 38 | . . . . . 38 . . . . Shots 1 | . . . . . 1 . . . . Rammed 10 | . 1 2 2 1 2 2 . . . Targets Rammed 11 | . 1 2 3 1 2 2 . . . Kicked . | . . . . . . . . . . Crushed 1 | . . . 1 . . . . . . Highest Temperature 263 | . 9 72 165 . 25 263 221 . 155 Average Temperature 56 | . 9 29 59 . 12 81 119 . 84 Received Heat Transfer 733 | . 24 . 453 . 234 22 . . . Siege Activations . | . . . . . . . . . . Robots Corrupted . | . . . . . . . . . . Combat Hostiles . | . . . . . . . . . . Parts Fried . | . . . . . . . . . . Impact Corruptions . | . . . . . . . . . . Robots Melted . | . . . . . . . . . . Combat Hostiles . | . . . . . . . . . . Parts Melted . | . . . . . . . . . . Heat Transferred 1049 | . 50 222 777 . . . . . . Parts Sabotaged . | . . . . . . . . . . Parts Stolen . | . . . . . . . . . . Parts Stripped . | . . . . . . . . . . Power Chain Reactions . | . . . . . . . . . . Alert | -11 -10 -10 -9 -9 -8 -7 -7 -7 -7 ------- Run | Yrd Mat Min Mat Min Mat Fac Was Fac DSF Peak Influence 403 | . 45 120 403 73 170 178 8 . 15 Initial 66 | . . . . 41 24 66 8 . . Average 83 | . 6 52 229 44 52 81 1 . 7 Maximum Alert Level 2 | . . . 2 . . . . . . Low Security (%) 85 | 100 100 100 24 100 100 100 100 100 100 Level 1 14 | . . . 72 . . . . . . Level 2 . | . . . 2 . . . . . . Level 3 . | . . . . . . . . . . Level 4 . | . . . . . . . . . . Level 5 . | . . . . . . . . . . High Security . | . . . . . . . . . . Max Security . | . . . . . . . . . . Squads Dispatched 9 | . . . 1 . 3 4 . . 1 Investigation 3 | . . . . . 3 . . . . Extermination 1 | . . . . . . 1 . . . Reinforcement 3 | . . . 1 . . 1 . . 1 Assault . | . . . . . . . . . . Garrison 2 | . . . . . . 2 . . . Intercept . | . . . . . . . . . . Searches Triggered . | . . . . . . . . . . Construction Impeded . | . . . . . . . . . . Haulers Reinforced . | . . . . . . . . . . Active Scanning Responses . | . . . . . . . . . . Cargo Convoy Interrupts . | . . . . . . . . . . Stealth | -11 -10 -10 -9 -9 -8 -7 -7 -7 -7 --------- Run | Yrd Mat Min Mat Min Mat Fac Was Fac DSF Distress Signals 2 | . . . 1 . 1 . . . . Communications Jammed . | . . . . . . . . . . Distress Signals . | . . . . . . . . . . Times Spotted 83 | . 2 6 23 . 27 16 6 . 3 Peak Tracking Total 6 | . 2 3 4 . 5 4 6 . 2 Tactical Retreats 13 | . 1 . . . 9 1 1 . 1 Traps | -11 -10 -10 -9 -9 -8 -7 -7 -7 -7 ------- Run | Yrd Mat Min Mat Min Mat Fac Was Fac DSF Traps Triggered 4 | . . . . . 1 1 . . 2 Indirectly . | . . . . . . . . . . Trap Hack Attempts . | . . . . . . . . . . Triggered . | . . . . . . . . . . Disarmed . | . . . . . . . . . . Reprogrammed . | . . . . . . . . . . Reused . | . . . . . . . . . . Traps Extracted . | . . . . . . . . . . Installed . | . . . . . . . . . . Triggered . | . . . . . . . . . . Machines | -11 -10 -10 -9 -9 -8 -7 -7 -7 -7 ---------- Run | Yrd Mat Min Mat Min Mat Fac Was Fac DSF Machines Disabled 2 | . . . 1 . 1 . . . . Max in Single Turn 1 | . . . 1 . 1 . . . . Machines Repaired . | . . . . . . . . . . Machines Dismantled . | . . . . . . . . . . Machines Sabotaged . | . . . . . . . . . . Overloaded Fab Kills . | . . . . . . . . . . Hacking | -11 -10 -10 -9 -9 -8 -7 -7 -7 -7 --------- Run | Yrd Mat Min Mat Min Mat Fac Was Fac DSF Machines Accessed 11 | . . 1 6 . 3 . . 1 . Terminals 8 | . . . 4 . 3 . . 1 . Fabricators . | . . . . . . . . . . Repair Stations 1 | . . . 1 . . . . . . Recycling Units . | . . . . . . . . . . Scanalyzers 1 | . . . 1 . . . . . . Garrison Access . | . . . . . . . . . . Total Hacks 24 | . . 1 14 . 8 . . 1 . Successful 16 | . . 1 9 . 5 . . 1 . Failed 8 | . . . 5 . 3 . . . . Catastrophic 1 | . . . 1 . . . . . . Database Lockouts . | . . . . . . . . . . Manual . | . . . . . . . . . . Terminals 21 | . . . 12 . 8 . . 1 . Fabricators . | . . . . . . . . . . Repair Stations 1 | . . . 1 . . . . . . Recycling Units . | . . . . . . . . . . Scanalyzers 1 | . . . 1 . . . . . . Garrison Access . | . . . . . . . . . . Terminal Hacks 15 | . . 1 8 . 5 . . 1 . Record 5 | . . . 4 . 1 . . . . Prototype ID Bank 1 | . . . 1 . . . . . . Open Door 1 | . . 1 . . . . . . . Open DSF 1 | . . . . . . . . 1 . Branch Access Points 1 | . . . 1 . . . . . . Emergency Access Points 1 | . . . . . 1 . . . . Alert Level 1 | . . . 1 . . . . . . Unreport Threat 1 | . . . . . 1 . . . . Dispatch Records 2 | . . . 1 . 1 . . . . Zone Layout 1 | . . . . . 1 . . . . Fabricator Hacks . | . . . . . . . . . . Repair Station Hacks . | . . . . . . . . . . Recycling Unit Hacks . | . . . . . . . . . . Scanalyzer 1 | . . . 1 . . . . . . Insert Component 1 | . . . 1 . . . . . . Garrison Access Hacks . | . . . . . . . . . . Unauthorized Hacks . | . . . . . . . . . . Terminals . | . . . . . . . . . . Fabricators . | . . . . . . . . . . Repair Stations . | . . . . . . . . . . Recycling Units . | . . . . . . . . . . Scanalyzers . | . . . . . . . . . . Garrison Access . | . . . . . . . . . . Data Cores Recovered 1 | . . . . . 1 . . . . Used . | . . . . . . . . . . Hacking Detections 8 | . . . 5 . 3 . . . . Full Trace Events 1 | . . . . . 1 . . . . Feedback Events 1 | . . . . . 1 . . . . Corruption 1 | . . . . . 1 . . . . Feedback Blocked . | . . . . . . . . . . Robot Schematics Acquired . | . . . . . . . . . . Robots Built . | . . . . . . . . . . Authchips . | . . . . . . . . . . Time . | . . . . . . . . . . Total Robot Build Rating . | . . . . . . . . . . Part Schematics Acquired . | . . . . . . . . . . Parts Built . | . . . . . . . . . . Authchips . | . . . . . . . . . . Time . | . . . . . . . . . . Total Part Build Rating . | . . . . . . . . . . Parts Repaired . | . . . . . . . . . . Time . | . . . . . . . . . . Parts Recycled . | . . . . . . . . . . Recycled Matter . | . . . . . . . . . . Retrieved Matter . | . . . . . . . . . . Retrieved Components . | . . . . . . . . . . Parts Scanalyzed . | . . . . . . . . . . Part Schematics Acquired . | . . . . . . . . . . Parts Damaged . | . . . . . . . . . . Bothacking | -11 -10 -10 -9 -9 -8 -7 -7 -7 -7 ------------ Run | Yrd Mat Min Mat Min Mat Fac Was Fac DSF Used RIF Installer . | . . . . . . . . . . Robots Hacked . | . . . . . . . . . . Non-combat . | . . . . . . . . . . Combat . | . . . . . . . . . . Robot Hacks Applied . | . . . . . . . . . . Relay Couplers Released . | . . . . . . . . . . Fabnet Peak Effective % . | . . . . . . . . . . Robots Rewired . | . . . . . . . . . . Allies Hacked . | . . . . . . . . . . Hacks Repelled . | . . . . . . . . . . Allies | -11 -10 -10 -9 -9 -8 -7 -7 -7 -7 -------- Run | Yrd Mat Min Mat Min Mat Fac Was Fac DSF Total Allies 3 | . . . . 2 . . 1 . . Largest Group 2 | . . . . 2 2 . 1 . . Highest-Rated Group 54 | . . . . 54 54 . 31 . . Highest-Rated Ally 31 | . . . . 31 31 . 31 . . Total Orders . | . . . . . . . . . . Ally Attacks 163 | . . . . 1 124 28 10 . . Total Damage 769 | . . . . 9 594 84 82 . . Kills 9 | . . . . 1 8 . . . . Allies Corrupted . | . . . . . . . . . . Allies Melted . | . . . . . . . . . . Intel | -11 -10 -10 -9 -9 -8 -7 -7 -7 -7 ------- Run | Yrd Mat Min Mat Min Mat Fac Was Fac DSF Robot Analysis Total . | . . . . . . . . . . Derelict Logs Recovered 1 | . . 1 . . . . . . . Drone Launches 30 | . . . . 3 23 4 . . . Drone Recoveries 27 | . . . . . 23 4 . . . Exploration | -11 -10 -10 -9 -9 -8 -7 -7 -7 -7 ------------- Run | Yrd Mat Min Mat Min Mat Fac Was Fac DSF Turns Passed 4309 | 171 408 415 837 275 1039 929 113 7 115 Spaces Moved 1378 | 41 73 228 407 57 221 188 120 4 39 Core 160 | 11 . . . . . . 106 4 39 Treads 1218 | 30 73 228 407 57 221 188 14 . . Legs . | . . . . . . . . . . Wheels . | . . . . . . . . . . Hover . | . . . . . . . . . . Flight . | . . . . . . . . . . Fastest Speed 50 | 50 160 160 160 160 160 240 50 150 100 Average Speed 172 | 130 160 160 160 160 229 240 76 150 121 Slowest Speed 450 | 160 160 160 160 160 240 240 450 150 150 Overloaded Moves . | . . . . . . . . . . Propulsion Burnouts . | . . . . . . . . . . Robots Hopped . | . . . . . . . . . . Cave-ins Triggered . | . . . . . . . . . . Exploration Rate (%) 32 | 6 17 53 37 24 30 9 83 . 33 Regions Visited 9 Branch Regions 2 Pre-discovered Areas . | . . . . . . . . . . Known Exits Taken 2 | . . . 1 . . . . 1 . Unknown Exits Taken 5 | 1 1 1 . 1 1 . . . . Scrap Searched 1 | . . 1 . . . . . . . Spaces Dug . | . . . . . . . . . . Terrain Destroyed 22 | . . . . . 10 12 . . . Melee . | . . . . . . . . . . Projectile . | . . . . . . . . . . AOE 22 | . . . . . 10 12 . . . Terrain Rammed . | . . . . . . . . . . Walls Destroyed . | . . . . . . . . . . Machines Disabled . | . . . . . . . . . . Actions | -11 -10 -10 -9 -9 -8 -7 -7 -7 -7 --------- Run | Yrd Mat Min Mat Min Mat Fac Was Fac DSF Total 3063 | 159 360 261 493 238 696 614 130 5 107 Wait 1425 | 107 276 21 8 180 412 383 2 . 36 Move 1370 | 40 72 227 406 56 220 188 119 3 39 Hop . | . . . . . . . . . . Pick Up 26 | 6 6 3 5 . 3 3 . . . Fast Attach 1 | . . . . . 1 . . . . Attach 26 | 6 1 . 6 . 5 2 3 2 1 Detach 1 | . . . . . 1 . . . . Swap 14 | . 1 . 4 . 6 3 . . . Drop 29 | . 1 . 5 . 16 6 . . 1 Fire 129 | . 2 8 56 1 30 27 5 . . Melee 1 | . . . . . . . 1 . . Ram . | . . . . . . . . . . Kick . | . . . . . . . . . . Crush 11 | . 1 2 3 1 2 2 . . . Escape Stasis 30 | . . . . . . . . . 30 Rewire . | . . . . . . . . . . Trap . | . . . . . . . . . . Miscellaneous . | . . . . . . . . . . Route ------- -11/Scrapyard -10/Materials -10/Mines -9/Materials (discovered 3 exits: *Min / *Sto x2) -9/Mines -8/Materials -7/Factory -7/Waste -7/Factory -7/DSF History --------- Turn | Location | Event 29 | -11/Scrapyard | Discovered new exit (range 15) 172 | -11/Scrapyard | Entered Materials 306 | -10/Materials | Build established: Mutant 534 | -10/Materials | Discovered new exit (range 15) 580 | -10/Materials | Entered Mines 690 | -10/Mines | Learned Materials emergency access door positions 708 | -10/Mines | Received a Rocket Launcher from a helpful Derelict 858 | -10/Mines | Found the Drone Emporium 866 | -10/Mines | Found Prototype Device 961 | -10/Mines | Discovered new exit (range 5) 995 | -10/Mines | Entered Materials 995 | -9/Materials | Evolved 2 slots: Utility x2 1021 | -9/Materials | Discovered new exit (range 16) 1369 | -9/Materials | Identified Thief Drone Bay 1420 | -9/Materials | Identified exit to Mines 1420 | -9/Materials | Identified exit to Storage 1718 | -9/Materials | Lost 4 parts (1p2u1w) 1832 | -9/Materials | Entered Mines 1919 | -9/Mines | Assembled infested the area 2072 | -9/Mines | Discovered new exit (range 15) 2107 | -9/Mines | Entered Materials 2107 | -8/Materials | Accompanied by 5 allies 2107 | -8/Materials | Evolved 2 slots: Power x1, Utility x1 2112 | -8/Materials | Led the pair of lost Derelicts to an unsafe place 3072 | -8/Materials | Discovered new exit (range 3) 3146 | -8/Materials | Entered Factory 3146 | -7/Factory | Accompanied by 1 ally 3146 | -7/Factory | Evolved 2 slots: Utility x1, Weapon x1 3434 | -7/Factory | Build established: Hacker-Tank 3866 | -7/Factory | Garrison activated, responded to threat 4015 | -7/Factory | Garrison activated, responded to threat 4075 | -7/Factory | Sucked down chute 4075 | -7/Factory | Entered Waste 4076 | -7/Waste | Met a frightened Derelict 4083 | -7/Waste | Spotted C-40 Crusher 4090 | -7/Waste | EMP discharged 4110 | -7/Waste | Crushed by Compactor (1 part destroyed, 2 dropped) 4115 | -7/Waste | Crushed by Compactor (1 part destroyed, 1 dropped) 4118 | -7/Waste | Crushed by Compactor (1 part destroyed, 1 dropped) 4124 | -7/Waste | Crushed by Compactor (1 part destroyed, 1 dropped) 4127 | -7/Waste | Crushed by Compactor (1 part destroyed, 1 dropped) 4130 | -7/Waste | Crushed by Compactor (1 part destroyed, 1 dropped) 4133 | -7/Waste | Crushed by Compactor (1 part destroyed, 1 dropped) 4147 | -7/Waste | Spotted C-40 Crusher 4153 | -7/Waste | Spotted C-40 Crusher 4157 | -7/Waste | Spotted C-40 Crusher 4161 | -7/Waste | Spotted C-40 Crusher 4164 | -7/Waste | Lost 7 parts (2n3u2w) 4169 | -7/Waste | Spotted C-40 Crusher 4184 | -7/Waste | Discovered new exit (range 10) 4188 | -7/Waste | Entered Factory 4195 | -7/Factory | Identified exit to DSF 4195 | -7/Factory | Entered DSF 4218 | -7/DSF | Additional patrols routed to DSF 4297 | -7/DSF | Core integrity fell below 50% 4307 | -7/DSF | Core integrity fell below 20% 4310 | -7/DSF | Destroyed by X-67 Chaingunner with Minigun Last Messages --------------- 04249_ Field strength at 94. 04250_ Field strength at 88. 04251_ Field strength at 82. 04252_ Field strength at 76. 04253_ Field strength at 70. 04254_ Field strength at 64. 04255_ Field strength at 58. 04256_ Field strength at 52. 04257_ Field strength at 46. 04258_ Field strength at 40. 04259_ Field strength at 34. 04260_ Field strength at 28. 04261_ Field strength at 22. 04262_ Field strength at 16. 04263_ Field strength at 10. 04264_ Field strength at 4. 04265_ Stasis field depleted. 04273_ HG3 Z2%EZ |XZYNWCL7W FLYT&S 04291_ Lgt. Nuclear Core destroyed. 04299_ Rocket Launcher destroyed. Map ----- +----------------------------------------------------+ | | | | | | | | | | | | | | | | | | | | | | | | | | | ?????????????????????????????????????????????? | | ?????????????????????????????????????????????? | | ?????????????????????????????????????????????? | | ?????????????????????????????????????????????? | | ?????????????????????????????????#""?????????? | | ?????????????????????????????????#"#?????????? | | ????????????????########????????##"####??????? | | ????????????????# !!! #########"""""#??????? | | ????????????#&&&# !!! #***#**##"""""#??????? | | ????????? ""##"#???? | | ????????? ^ """""#???? | | ????????????#&&&### ###xx #**## ""###????? | | ??????????????????# ????#@ #**### ###??????? | | ????????????????????????########## ##???????? | | ???????????????????????????????# #???????? | | ???????????????????????????????# #???????? | | ???????????????????????????????### ##???????? | | ???????????????????????????????#** *#???????? | | ???????????????????????????????#** *#???????? | | ???????????????????????????????#** *#???????? | | ???????????????????????????????###! ###??????? | | ?????????????????????????????????# #??????? | | ????????????????????????#[[[# ## ##?????? | | ??????????????????? "#?????? | | ??????????????????? H ##?????? | | ??????????????????? #??????? | | ???????????????????? ##!!!#!!!## ]]#??????? | | ????????????????????????#!!?#!!!?# ]]#??????? | | ????????????????????????#???###??######??????? | | ?????????????????????????????????????????????? | | ?????????????????????????????????????????????? | | ?????????????????????????????????????????????? | | ?????????????????????????????????????????????? | | ?????????????????????????????????????????????? | | ?????????????????????????????????????????????? | | ?????????????????????????????????????????????? | | ?????????????????????????????????????????????? | +----------------------------------------------------+ Best States ------------- Heat Dissipation 34 Energy Generation 23 Energy Capacity 455 Matter Stores 300 Matter Capacity 300 Sight Range 16 Terrain Scan Range 14 Terrain Scan Density 10 ECM Strength 1 Armor Coverage 225 Resistance: KI 20 Resistance: TH 20 Resistance: EX 20 Resistance: EM 20 Resistance: I 20 Resistance: S 20 Resistance: P 20 Evasion (%) 50 Recoil Reduction 2 Kinecelleration 30 Offensive Hacking 20 Item Schematics ----------------- None Robot Schematics ------------------ None Fabricated ------------ Nothing Alien Tech Used ----------------- None Achievements -------------- Let's See Who's Tougher Troublemaker Challenges ------------ None Game ------ Seed ThrusterWeaponsPropulsion Manual? 0 Play Time 00:36:05 Cumulative 2.8 hours Start 2024.10.24 @ 14:33:03 End 2024.10.24 @ 15:07:53 Sessions 1 Manual Loads 0 Difficulty Adventurer Special Mode None Game No. 4 Rogue 0 Adventurer 4 Explorer 0 Win Type - Total 0 Types 0/0/0/0/0/0/0/0/0 Lore% 6 Gallery% 7 Achievement% 8 Wizard Run 0 Options --------- Layout 1 ASCII 0 Keyboard 0 Movement Mouse Keybinds 0 Fullscreen 1 Font 24/Smallcaps Map View 50x35 Zoom Use 0% Tactical HUD 1 Map Filters NONE Filters NONE Steam 1 RUN: 097bcb02-6a98-4ed9-84a9-bfdd8dc47872